[Event "Late-Titled-Tuesday-Blitz-February-13-2024"]
[Site "Chess.com"]
[Date "2024.02.13"]
[Round "4"]
[White "PolandHussars"]
[Black "Sanan_Sjugirov"]
[Result "1-0"]
[WhiteElo "2629"]
[BlackElo "2961"]
[TimeControl "180+1"]
[EndTime "14:38:33 PST"]
[Termination "PolandHussars won on time"]

1. e4 {[%clk 0:03:00.9]} 1... c5 {[%clk 0:02:59.9]} 2. Ne2 {[%clk 0:03:00.5]}
2... d6 {[%clk 0:03:00.1]} 3. g3 {[%clk 0:03:00.8]} 3... Nc6 {[%clk 0:02:58.9]}
4. Bg2 {[%clk 0:03:00.2]} 4... g6 {[%clk 0:02:59.5]} 5. c3 {[%clk 0:03:00.4]}
5... Bg7 {[%clk 0:02:54.2]} 6. d4 {[%clk 0:03:00]} 6... cxd4 {[%clk 0:02:50.6]}
7. cxd4 {[%clk 0:03:00.9]} 7... Bg4 {[%clk 0:02:46.4]} 8. f3 {[%clk 0:02:59.7]}
8... Bd7 {[%clk 0:02:45.8]} 9. Nbc3 {[%clk 0:02:59.9]} 9... Nf6 {[%clk
0:02:43.9]} 10. O-O {[%clk 0:02:59.3]} 10... O-O {[%clk 0:02:44.5]} 11. Be3
{[%clk 0:02:58.8]} 11... Rc8 {[%clk 0:02:45.1]} 12. Qd2 {[%clk 0:02:59.3]} 12...
a6 {[%clk 0:02:42.6]} 13. Rac1 {[%clk 0:02:55.7]} 13... Qa5 {[%clk 0:02:31.9]}
14. g4 {[%clk 0:02:49.2]} 14... Rfd8 {[%clk 0:02:23]} 15. Ng3 {[%clk 0:02:42.3]}
15... b5 {[%clk 0:02:07.4]} 16. b3 {[%clk 0:02:38.4]} 16... b4 {[%clk
0:01:55.8]} 17. Nce2 {[%clk 0:02:35.5]} 17... Na7 {[%clk 0:01:56.4]} 18. a4
{[%clk 0:02:33.2]} 18... Rxc1 {[%clk 0:01:37.9]} 19. Rxc1 {[%clk 0:02:34.1]}
19... Rc8 {[%clk 0:01:38]} 20. d5 {[%clk 0:02:28.7]} 20... Rxc1+ {[%clk
0:01:19.5]} 21. Nxc1 {[%clk 0:02:20.9]} 21... Nc8 {[%clk 0:01:19.3]} 22. Nd3
{[%clk 0:02:16.3]} 22... Qc7 {[%clk 0:01:18.6]} 23. Nxb4 {[%clk 0:02:10.2]}
23... Qb7 {[%clk 0:01:17.6]} 24. a5 {[%clk 0:01:36.2]} 24... Qb5 {[%clk
0:01:17.4]} 25. Bf1 {[%clk 0:01:31.1]} 25... Qxa5 {[%clk 0:01:17.7]} 26. Nxa6
{[%clk 0:01:29.2]} 26... Qa1 {[%clk 0:01:03.7]} 27. Kg2 {[%clk 0:01:07.3]} 27...
h5 {[%clk 0:00:47.9]} 28. g5 {[%clk 0:01:03.3]} 28... Nh7 {[%clk 0:00:38.5]} 29.
h4 {[%clk 0:01:02.6]} 29... f6 {[%clk 0:00:25.4]} 30. Bd4 {[%clk 0:00:57.9]}
30... Qb1 {[%clk 0:00:25.1]} 31. b4 {[%clk 0:00:50.6]} 31... fxg5 {[%clk
0:00:19.8]} 32. Bxg7 {[%clk 0:00:49.3]} 32... Kxg7 {[%clk 0:00:20.5]} 33. hxg5
{[%clk 0:00:48.6]} 33... h4 {[%clk 0:00:19.6]} 34. Ne2 {[%clk 0:00:36.3]} 34...
h3+ {[%clk 0:00:17.6]} 35. Kf2 {[%clk 0:00:36.8]} 35... h2 {[%clk 0:00:17.1]}
36. Ng3 {[%clk 0:00:33.8]} 36... Kf7 {[%clk 0:00:06.3]} 37. Nb8 {[%clk
0:00:30.4]} 37... Ba4 {[%clk 0:00:01.6]} 38. Kg2 {[%clk 0:00:20.4]} 38... Nb6
{[%clk 0:00:01.4]} 39. Kxh2 {[%clk 0:00:19.6]} 1-0

[Event "Late-Titled-Tuesday-Blitz-February-13-2024"]
[Site "Chess.com"]
[Date "2024.02.13"]
[Round "4"]
[White "temus_galaktionov"]
[Black "SCIM"]
[Result "1-0"]
[WhiteElo "2899"]
[BlackElo "2588"]
[TimeControl "180+1"]
[EndTime "14:38:35 PST"]
[Termination "temus_galaktionov won by resignation"]

1. d4 {[%clk 0:03:00.9]} 1... Nf6 {[%clk 0:02:58.2]} 2. Nf3 {[%clk 0:03:01.5]}
2... c5 {[%clk 0:02:58.4]} 3. d5 {[%clk 0:03:01.4]} 3... g6 {[%clk 0:02:58.7]}
4. c4 {[%clk 0:03:01.5]} 4... b5 {[%clk 0:02:57.7]} 5. cxb5 {[%clk 0:02:59.7]}
5... a6 {[%clk 0:02:58.3]} 6. bxa6 {[%clk 0:02:58.7]} 6... Bxa6 {[%clk
0:02:59.2]} 7. Nc3 {[%clk 0:02:57.4]} 7... Bg7 {[%clk 0:02:59.2]} 8. e4 {[%clk
0:02:57.6]} 8... Bxf1 {[%clk 0:02:59.8]} 9. Kxf1 {[%clk 0:02:58.5]} 9... d6
{[%clk 0:03:00]} 10. g3 {[%clk 0:02:59.1]} 10... O-O {[%clk 0:03:00.4]} 11. Kg2
{[%clk 0:02:59.7]} 11... Na6 {[%clk 0:03:00.5]} 12. Qe2 {[%clk 0:02:59.1]} 12...
Qb6 {[%clk 0:03:00]} 13. Bf4 {[%clk 0:02:54.8]} 13... Rfb8 {[%clk 0:02:53.5]}
14. Rab1 {[%clk 0:02:54.6]} 14... Nc7 {[%clk 0:02:44.6]} 15. a4 {[%clk
0:02:48.4]} 15... Qa6 {[%clk 0:02:27]} 16. Qe3 {[%clk 0:02:38.8]} 16... Ng4
{[%clk 0:02:18.1]} 17. Qd2 {[%clk 0:02:38.6]} 17... Rb4 {[%clk 0:02:15.2]} 18.
h3 {[%clk 0:02:30]} 18... Nf6 {[%clk 0:02:14]} 19. Rhe1 {[%clk 0:02:27.9]} 19...
Qb7 {[%clk 0:02:06.9]} 20. g4 {[%clk 0:02:16.7]} 20... Rb8 {[%clk 0:02:02.4]}
21. Re2 {[%clk 0:02:16.4]} 21... h5 {[%clk 0:01:51.3]} 22. g5 {[%clk 0:02:13.4]}
22... Nd7 {[%clk 0:01:50.7]} 23. e5 {[%clk 0:02:11.9]} 23... Nb6 {[%clk
0:01:34.3]} 24. exd6 {[%clk 0:01:56]} 24... exd6 {[%clk 0:01:32.1]} 25. Bxd6
{[%clk 0:01:52.3]} 25... Nc4 {[%clk 0:01:24.1]} 26. Qf4 {[%clk 0:01:44]} 26...
Nxd6 {[%clk 0:01:11.5]} 27. Qxd6 {[%clk 0:01:35.3]} 27... Bxc3 {[%clk
0:01:11.7]} 28. Re7 {[%clk 0:01:34.3]} 28... Ne8 {[%clk 0:01:04.6]} 29. Qxc5
{[%clk 0:01:19.9]} 29... Qc8 {[%clk 0:00:59.2]} 30. Rxe8+ {[%clk 0:00:53.6]}
30... Qxe8 {[%clk 0:00:56.8]} 31. Qxc3 {[%clk 0:00:54.2]} 31... Rb3 {[%clk
0:00:52.3]} 32. Qf6 {[%clk 0:00:50.7]} 32... Qe4 {[%clk 0:00:36]} 33. Rd1 {[%clk
0:00:48.2]} 33... Rxb2 {[%clk 0:00:33.2]} 34. d6 {[%clk 0:00:47.2]} 34... Qe2
{[%clk 0:00:28.2]} 35. Ne5 {[%clk 0:00:47.2]} 35... Rf8 {[%clk 0:00:22.7]} 36.
Rd4 {[%clk 0:00:44.3]} 36... Rb1 {[%clk 0:00:19.4]} 37. Nf3 {[%clk 0:00:31.9]}
37... Rb2 {[%clk 0:00:16.3]} 38. Ng1 {[%clk 0:00:31.5]} 38... Qe1 {[%clk
0:00:13]} 39. d7 {[%clk 0:00:28.4]} 39... Rb1 {[%clk 0:00:13.3]} 40. Nf3 {[%clk
0:00:28.1]} 40... Qh1+ {[%clk 0:00:13.5]} 41. Kg3 {[%clk 0:00:28]} 41... Rb3
{[%clk 0:00:09.9]} 42. d8=Q {[%clk 0:00:24.8]} 42... Qg1+ {[%clk 0:00:09.9]} 43.
Kf4 {[%clk 0:00:23.4]} 43... Rxf3+ {[%clk 0:00:07.8]} 44. Kxf3 {[%clk
0:00:23.2]} 44... Qh1+ {[%clk 0:00:07.7]} 45. Ke2 {[%clk 0:00:22.8]} 1-0

[Event "Late-Titled-Tuesday-Blitz-February-13-2024"]
[Site "Chess.com"]
[Date "2024.02.13"]
[Round "4"]
[White "BardArtem"]
[Black "lupta_robin"]
[Result "1-0"]
[WhiteElo "2777"]
[BlackElo "2553"]
[TimeControl "180+1"]
[EndTime "14:38:36 PST"]
[Termination "BardArtem won on time"]

1. e4 {[%clk 0:02:56.9]} 1... b6 {[%clk 0:03:00]} 2. d4 {[%clk 0:02:53.1]} 2...
Bb7 {[%clk 0:03:00.6]} 3. Nc3 {[%clk 0:02:53.4]} 3... e6 {[%clk 0:03:01.2]} 4.
Bd3 {[%clk 0:02:51.8]} 4... g6 {[%clk 0:02:58]} 5. h4 {[%clk 0:02:49]} 5... Bg7
{[%clk 0:02:52.1]} 6. Bg5 {[%clk 0:02:32.5]} 6... Ne7 {[%clk 0:02:48.4]} 7. e5
{[%clk 0:02:17.7]} 7... h6 {[%clk 0:02:27.7]} 8. Bxe7 {[%clk 0:02:16.9]} 8...
Qxe7 {[%clk 0:02:27.4]} 9. Be4 {[%clk 0:02:17.8]} 9... Bxe4 {[%clk 0:02:24.7]}
10. Nxe4 {[%clk 0:02:18.7]} 10... Qb4+ {[%clk 0:02:25]} 11. c3 {[%clk
0:02:06.6]} 11... Qxb2 {[%clk 0:02:25.1]} 12. Nf3 {[%clk 0:02:05.8]} 12... Nc6
{[%clk 0:02:21.6]} 13. O-O {[%clk 0:02:04.3]} 13... O-O {[%clk 0:02:07.3]} 14.
a4 {[%clk 0:02:03.2]} 14... Na5 {[%clk 0:02:02.7]} 15. h5 {[%clk 0:01:26.8]}
15... Qb3 {[%clk 0:01:44.3]} 16. Qd3 {[%clk 0:01:21.2]} 16... Qc4 {[%clk
0:01:41.2]} 17. Qe3 {[%clk 0:01:20.7]} 17... Qd5 {[%clk 0:01:36.9]} 18. Nfd2
{[%clk 0:01:11.6]} 18... Nc4 {[%clk 0:01:33.4]} 19. Nxc4 {[%clk 0:01:07]} 19...
Qxc4 {[%clk 0:01:34.3]} 20. a5 {[%clk 0:01:05.7]} 20... b5 {[%clk 0:00:50.3]}
21. a6 {[%clk 0:00:51.1]} 21... Rab8 {[%clk 0:00:48.8]} 22. Rfb1 {[%clk
0:00:46.6]} 22... b4 {[%clk 0:00:43]} 23. Ra4 {[%clk 0:00:35.7]} 23... Rb5
{[%clk 0:00:35.5]} 24. cxb4 {[%clk 0:00:22.1]} 24... Rfb8 {[%clk 0:00:34]} 25.
Rc1 {[%clk 0:00:21.9]} 25... Qd5 {[%clk 0:00:28.3]} 26. Nc3 {[%clk 0:00:22.1]}
26... Qb3 {[%clk 0:00:25.3]} 27. Nxb5 {[%clk 0:00:08.5]} 27... Qxa4 {[%clk
0:00:24.8]} 28. Nxc7 {[%clk 0:00:08]} 28... Qxb4 {[%clk 0:00:19.4]} 29. hxg6
{[%clk 0:00:07.8]} 29... fxg6 {[%clk 0:00:18.6]} 30. Qd3 {[%clk 0:00:08.3]}
30... Kh7 {[%clk 0:00:15.3]} 31. d5 {[%clk 0:00:07.9]} 31... Qf4 {[%clk
0:00:03.1]} 32. Re1 {[%clk 0:00:08.1]} 32... Rb2 {[%clk 0:00:03]} 33. Qe3 {[%clk
0:00:05]} 33... Bxe5 {[%clk 0:00:01.2]} 34. Qxf4 {[%clk 0:00:04.1]} 34... Bxf4
{[%clk 0:00:01.3]} 35. Ne8 {[%clk 0:00:05]} 1-0

[Event "Late-Titled-Tuesday-Blitz-February-13-2024"]
[Site "Chess.com"]
[Date "2024.02.13"]
[Round "4"]
[White "andrzej"]
[Black "Ducke13"]
[Result "1-0"]
[WhiteElo "2522"]
[BlackElo "2341"]
[TimeControl "180+1"]
[EndTime "14:38:38 PST"]
[Termination "andrzej won by resignation"]

1. e4 {[%clk 0:03:00.9]} 1... c5 {[%clk 0:02:49.8]} 2. Nf3 {[%clk 0:03:00.9]}
2... d6 {[%clk 0:02:49.7]} 3. d4 {[%clk 0:03:01.3]} 3... cxd4 {[%clk 0:02:50.6]}
4. Nxd4 {[%clk 0:03:01.9]} 4... Nf6 {[%clk 0:02:51]} 5. Nc3 {[%clk 0:03:02.5]}
5... a6 {[%clk 0:02:50.9]} 6. Be3 {[%clk 0:03:02.7]} 6... e5 {[%clk 0:02:51.3]}
7. Nb3 {[%clk 0:03:03.1]} 7... Be7 {[%clk 0:02:50.6]} 8. h3 {[%clk 0:03:03.5]}
8... Be6 {[%clk 0:02:44.1]} 9. Qf3 {[%clk 0:03:02.8]} 9... O-O {[%clk
0:02:42.5]} 10. O-O-O {[%clk 0:03:02.7]} 10... a5 {[%clk 0:01:49.3]} 11. Nc5
{[%clk 0:02:57.2]} 11... Qc8 {[%clk 0:01:23.7]} 12. Nxe6 {[%clk 0:02:56.7]}
12... fxe6 {[%clk 0:01:22.4]} 13. Qe2 {[%clk 0:02:50.3]} 13... Nc6 {[%clk
0:01:19.4]} 14. Qc4 {[%clk 0:02:46.7]} 14... Kh8 {[%clk 0:01:02.7]} 15. Kb1
{[%clk 0:02:44.3]} 15... d5 {[%clk 0:00:54.6]} 16. exd5 {[%clk 0:02:40.6]} 16...
exd5 {[%clk 0:00:54.7]} 17. Nxd5 {[%clk 0:02:34]} 17... Nxd5 {[%clk 0:00:53]}
18. Rxd5 {[%clk 0:02:33]} 18... e4 {[%clk 0:00:24.1]} 19. Qxe4 {[%clk
0:02:23.7]} 19... Nb4 {[%clk 0:00:22]} 20. Rd2 {[%clk 0:02:19.2]} 20... Bf6
{[%clk 0:00:14.1]} 21. a3 {[%clk 0:02:19.1]} 21... Re8 {[%clk 0:00:10.4]} 22.
Qg4 {[%clk 0:02:09.5]} 22... Nc6 {[%clk 0:00:02.2]} 23. Qh5 {[%clk 0:01:49.2]}
23... Ne5 {[%clk 0:00:02.1]} 24. Bd4 {[%clk 0:01:43.6]} 24... Qc7 {[%clk
0:00:01.9]} 25. Bc3 {[%clk 0:01:22.4]} 25... Rad8 {[%clk 0:00:01.9]} 26. Rxd8
{[%clk 0:01:21.7]} 26... Rxd8 {[%clk 0:00:02.8]} 27. Be2 {[%clk 0:01:19]} 27...
b5 {[%clk 0:00:03.2]} 28. Rd1 {[%clk 0:01:11]} 28... b4 {[%clk 0:00:02.8]} 29.
Rxd8+ {[%clk 0:01:08.6]} 29... Qxd8 {[%clk 0:00:01.7]} 30. Bxe5 {[%clk
0:01:07.3]} 30... Bxe5 {[%clk 0:00:02.3]} 31. Qxe5 {[%clk 0:01:07.4]} 31... bxa3
{[%clk 0:00:03.2]} 32. bxa3 {[%clk 0:00:59.3]} 32... a4 {[%clk 0:00:04.1]} 33.
Bd3 {[%clk 0:00:55.6]} 33... Qc8 {[%clk 0:00:03.1]} 34. Qf5 {[%clk 0:00:49]}
34... Qb8+ {[%clk 0:00:03.7]} 35. Kc1 {[%clk 0:00:49.3]} 35... Qg8 {[%clk
0:00:02.2]} 36. Qxh7+ {[%clk 0:00:47.3]} 36... Qxh7 {[%clk 0:00:03.1]} 37. Bxh7
{[%clk 0:00:47.7]} 37... Kxh7 {[%clk 0:00:04]} 38. c4 {[%clk 0:00:45.7]} 38...
g5 {[%clk 0:00:04.9]} 39. c5 {[%clk 0:00:44.7]} 39... Kg6 {[%clk 0:00:05.8]} 40.
c6 {[%clk 0:00:44.9]} 40... g4 {[%clk 0:00:06]} 41. hxg4 {[%clk 0:00:44.8]}
41... Kg5 {[%clk 0:00:06.3]} 42. c7 {[%clk 0:00:44.9]} 42... Kh4 {[%clk
0:00:06.4]} 43. c8=Q {[%clk 0:00:44.6]} 43... Kg5 {[%clk 0:00:06.9]} 44. Qf5+
{[%clk 0:00:44.4]} 44... Kh6 {[%clk 0:00:07.8]} 45. g5+ {[%clk 0:00:44.3]} 45...
Kg7 {[%clk 0:00:08.7]} 46. Qf6+ {[%clk 0:00:44.3]} 46... Kg8 {[%clk 0:00:09.6]}
47. Qg6+ {[%clk 0:00:42.5]} 47... Kh8 {[%clk 0:00:09.9]} 48. Qh5+ {[%clk
0:00:41.7]} 48... Kg8 {[%clk 0:00:10.8]} 49. g6 {[%clk 0:00:41.6]} 49... Kg7
{[%clk 0:00:09.1]} 50. Qh7+ {[%clk 0:00:41.6]} 50... Kf6 {[%clk 0:00:09.9]} 51.
g7 {[%clk 0:00:41.4]} 51... Ke5 {[%clk 0:00:06.4]} 52. g8=Q {[%clk 0:00:40.9]}
1-0

[Event "Late-Titled-Tuesday-Blitz-February-13-2024"]
[Site "Chess.com"]
[Date "2024.02.13"]
[Round "4"]
[White "ural58"]
[Black "IraZyne"]
[Result "1/2-1/2"]
[WhiteElo "2514"]
[BlackElo "2343"]
[TimeControl "180+1"]
[EndTime "14:38:38 PST"]
[Termination "Game drawn by repetition"]

1. e4 {[%clk 0:03:00.9]} 1... Nf6 {[%clk 0:02:58.6]} 2. e5 {[%clk 0:03:00.2]}
2... Nd5 {[%clk 0:02:58.6]} 3. d4 {[%clk 0:03:00.3]} 3... d6 {[%clk 0:02:57]} 4.
c4 {[%clk 0:03:00.3]} 4... Nb6 {[%clk 0:02:56.4]} 5. f4 {[%clk 0:03:00.3]} 5...
g6 {[%clk 0:02:54.1]} 6. Nc3 {[%clk 0:02:56.7]} 6... Bg7 {[%clk 0:02:53.3]} 7.
Be3 {[%clk 0:02:51.7]} 7... Be6 {[%clk 0:02:52.8]} 8. d5 {[%clk 0:02:49.3]} 8...
Bc8 {[%clk 0:02:51.3]} 9. Nf3 {[%clk 0:02:47.5]} 9... Bg4 {[%clk 0:02:50.8]} 10.
c5 {[%clk 0:02:27.9]} 10... N6d7 {[%clk 0:02:40.9]} 11. cxd6 {[%clk 0:02:16.4]}
11... exd6 {[%clk 0:02:40.7]} 12. Bd4 {[%clk 0:01:56.8]} 12... O-O {[%clk
0:02:39.3]} 13. Be2 {[%clk 0:01:56]} 13... Bxf3 {[%clk 0:02:37.2]} 14. Bxf3
{[%clk 0:01:54.2]} 14... dxe5 {[%clk 0:02:36.9]} 15. fxe5 {[%clk 0:01:53.6]}
15... Nxe5 {[%clk 0:02:36.2]} 16. O-O {[%clk 0:01:46.7]} 16... Nbd7 {[%clk
0:02:31.9]} 17. Be2 {[%clk 0:01:40.4]} 17... Qh4 {[%clk 0:02:26.1]} 18. Bf2
{[%clk 0:01:36.6]} 18... Qe7 {[%clk 0:02:19.6]} 19. Qb3 {[%clk 0:01:33.8]} 19...
b6 {[%clk 0:02:17.9]} 20. Rae1 {[%clk 0:01:33]} 20... Kh8 {[%clk 0:02:07.5]} 21.
Bb5 {[%clk 0:01:29.8]} 21... Nc5 {[%clk 0:02:06.1]} 22. Qa3 {[%clk 0:01:25.6]}
22... a6 {[%clk 0:02:04.2]} 23. Bc6 {[%clk 0:01:24.9]} 23... Rad8 {[%clk
0:01:54.8]} 24. Bxc5 {[%clk 0:01:22.3]} 24... Qxc5+ {[%clk 0:01:54.4]} 25. Qxc5
{[%clk 0:01:21.6]} 25... bxc5 {[%clk 0:01:54.6]} 26. Na4 {[%clk 0:01:16.1]}
26... c4 {[%clk 0:01:52.6]} 27. b3 {[%clk 0:00:59.6]} 27... cxb3 {[%clk
0:01:48.7]} 28. axb3 {[%clk 0:00:59.3]} 28... Rb8 {[%clk 0:01:39.4]} 29. Rb1
{[%clk 0:00:44]} 29... Nd3 {[%clk 0:01:36.5]} 30. h3 {[%clk 0:00:38.4]} 30...
Nc5 {[%clk 0:01:34.6]} 31. Nxc5 {[%clk 0:00:34.8]} 31... Bd4+ {[%clk 0:01:34.2]}
32. Kh1 {[%clk 0:00:34.6]} 32... Bxc5 {[%clk 0:01:34.7]} 33. Rf3 {[%clk
0:00:29]} 33... Kg7 {[%clk 0:01:31.5]} 34. g4 {[%clk 0:00:26.7]} 34... f5 {[%clk
0:01:28.9]} 35. gxf5 {[%clk 0:00:25]} 35... Rxf5 {[%clk 0:01:28.8]} 36. Rxf5
{[%clk 0:00:24.5]} 36... gxf5 {[%clk 0:01:28.7]} 37. Kg2 {[%clk 0:00:22.8]}
37... Kf6 {[%clk 0:01:27]} 38. Kf3 {[%clk 0:00:20.2]} 38... Bd6 {[%clk
0:01:25.7]} 39. Ba4 {[%clk 0:00:13.8]} 39... Rb4 {[%clk 0:01:24.7]} 40. Rg1
{[%clk 0:00:12]} 40... Rf4+ {[%clk 0:01:20.9]} 41. Ke2 {[%clk 0:00:11.5]} 41...
Rh4 {[%clk 0:01:20.3]} 42. Rg8 {[%clk 0:00:10.5]} 42... Rxh3 {[%clk 0:01:18.9]}
43. Ra8 {[%clk 0:00:11.1]} 43... Rh2+ {[%clk 0:01:16.8]} 44. Kf1 {[%clk
0:00:10.5]} 44... Rd2 {[%clk 0:01:16.1]} 45. Rxa6 {[%clk 0:00:10.4]} 45... Rxd5
{[%clk 0:01:15.7]} 46. Ra8 {[%clk 0:00:10.3]} 46... h5 {[%clk 0:01:15.4]} 47.
Rh8 {[%clk 0:00:06.9]} 47... f4 {[%clk 0:01:15.5]} 48. Bc6 {[%clk 0:00:05.3]}
48... Rg5 {[%clk 0:01:14.2]} 49. Bf3 {[%clk 0:00:02.8]} 49... Ke5 {[%clk
0:01:11.9]} 50. Rxh5 {[%clk 0:00:02.7]} 50... Rxh5 {[%clk 0:01:11.2]} 51. Bxh5
{[%clk 0:00:03.6]} 51... Kd4 {[%clk 0:01:09.1]} 52. Bf7 {[%clk 0:00:04.1]} 52...
Ke3 {[%clk 0:01:08.4]} 53. Bc4 {[%clk 0:00:05]} 53... f3 {[%clk 0:01:07.6]} 54.
Bg8 {[%clk 0:00:05.9]} 54... f2 {[%clk 0:01:07.2]} 55. Bc4 {[%clk 0:00:06.8]}
55... c5 {[%clk 0:01:06.1]} 56. Bg8 {[%clk 0:00:07.7]} 56... Be5 {[%clk
0:01:04.1]} 57. Bc4 {[%clk 0:00:08.6]} 57... Bd4 {[%clk 0:01:04.2]} 58. Bg8
{[%clk 0:00:09.5]} 58... Kd3 {[%clk 0:01:03.5]} 59. Bc4+ {[%clk 0:00:10.4]}
59... Kc3 {[%clk 0:01:03.6]} 60. Bg8 {[%clk 0:00:11.3]} 60... Kd3 {[%clk
0:01:03.6]} 61. Bc4+ {[%clk 0:00:12.2]} 61... Kc3 {[%clk 0:01:03.9]} 62. Bd5
{[%clk 0:00:13.1]} 62... Kd3 {[%clk 0:01:03.6]} 63. Bc4+ {[%clk 0:00:14]}
1/2-1/2

[Event "Late-Titled-Tuesday-Blitz-February-13-2024"]
[Site "Chess.com"]
[Date "2024.02.13"]
[Round "4"]
[White "tptagain"]
[Black "ViIIagra"]
[Result "1-0"]
[WhiteElo "2870"]
[BlackElo "2960"]
[TimeControl "180+1"]
[EndTime "14:38:40 PST"]
[Termination "tptagain won by resignation"]

1. Nf3 {[%clk 0:03:00.9]} 1... d6 {[%clk 0:03:00.9]} 2. d4 {[%clk 0:03:00.7]}
2... Nf6 {[%clk 0:03:00.1]} 3. g3 {[%clk 0:03:00.5]} 3... c5 {[%clk 0:02:49.9]}
4. c4 {[%clk 0:02:48]} 4... cxd4 {[%clk 0:02:46.9]} 5. Nxd4 {[%clk 0:02:48]}
5... Nc6 {[%clk 0:02:47.6]} 6. Bg2 {[%clk 0:02:48]} 6... Bd7 {[%clk 0:02:47.4]}
7. Nc3 {[%clk 0:02:48.3]} 7... g6 {[%clk 0:02:46.5]} 8. O-O {[%clk 0:02:45.9]}
8... Bg7 {[%clk 0:02:47]} 9. Nxc6 {[%clk 0:02:44.7]} 9... Bxc6 {[%clk
0:02:45.4]} 10. e4 {[%clk 0:02:44.7]} 10... O-O {[%clk 0:02:44.7]} 11. Qe2
{[%clk 0:02:43.4]} 11... a6 {[%clk 0:02:38.2]} 12. Rd1 {[%clk 0:02:40.3]} 12...
Nd7 {[%clk 0:02:31.5]} 13. Nd5 {[%clk 0:02:36.7]} 13... b5 {[%clk 0:02:22.2]}
14. Bg5 {[%clk 0:02:29.2]} 14... Re8 {[%clk 0:02:15.9]} 15. Rac1 {[%clk
0:02:03.2]} 15... h6 {[%clk 0:02:09]} 16. Be3 {[%clk 0:01:48.6]} 16... bxc4
{[%clk 0:01:48.2]} 17. Qxc4 {[%clk 0:01:48.2]} 17... Bxd5 {[%clk 0:01:40.2]} 18.
Qxd5 {[%clk 0:01:44.9]} 18... Bxb2 {[%clk 0:01:38.3]} 19. Rb1 {[%clk 0:01:42.8]}
19... Bg7 {[%clk 0:01:35.6]} 20. e5 {[%clk 0:01:40.5]} 20... Nxe5 {[%clk
0:01:14.5]} 21. Qxa8 {[%clk 0:01:40.6]} 21... Qxa8 {[%clk 0:01:15.4]} 22. Bxa8
{[%clk 0:01:40.8]} 22... Rxa8 {[%clk 0:01:16.3]} 23. Rb7 {[%clk 0:01:41]} 23...
Kf8 {[%clk 0:00:37.4]} 24. Rc1 {[%clk 0:01:40]} 24... g5 {[%clk 0:00:37.3]} 25.
Rcc7 {[%clk 0:01:25.8]} 25... Bf6 {[%clk 0:00:37.6]} 26. h3 {[%clk 0:01:19.3]}
26... a5 {[%clk 0:00:32.7]} 27. Kg2 {[%clk 0:01:15.4]} 27... h5 {[%clk
0:00:31.6]} 28. a4 {[%clk 0:01:05.8]} 28... g4 {[%clk 0:00:31.6]} 29. hxg4
{[%clk 0:01:03.7]} 29... hxg4 {[%clk 0:00:32.5]} 30. Bd4 {[%clk 0:00:51.1]}
30... Kg7 {[%clk 0:00:12.7]} 31. Bxe5 {[%clk 0:00:51]} 31... dxe5 {[%clk
0:00:13.6]} 32. Ra7 {[%clk 0:00:48.1]} 32... Rd8 {[%clk 0:00:14.1]} 33. Rc4
{[%clk 0:00:46.9]} 33... Kg6 {[%clk 0:00:10.4]} 34. Rxg4+ {[%clk 0:00:44.3]}
34... Kf5 {[%clk 0:00:11]} 35. Rc4 {[%clk 0:00:41.7]} 35... e4 {[%clk
0:00:07.3]} 36. Rxa5+ {[%clk 0:00:41]} 36... Be5 {[%clk 0:00:07.6]} 37. Rc2
{[%clk 0:00:34.8]} 37... f6 {[%clk 0:00:06.5]} 38. Ra2 {[%clk 0:00:32.6]} 38...
Rd3 {[%clk 0:00:05.9]} 39. Ra8 {[%clk 0:00:23.6]} 39... e3 {[%clk 0:00:06]} 40.
fxe3 {[%clk 0:00:24]} 40... Rxe3 {[%clk 0:00:06.1]} 41. Rg8 {[%clk 0:00:24.4]}
41... Bd4 {[%clk 0:00:03.9]} 42. a5 {[%clk 0:00:24.1]} 42... Rc3 {[%clk
0:00:04.4]} 43. a6 {[%clk 0:00:23.5]} 43... Rc7 {[%clk 0:00:04.1]} 44. Rb8
{[%clk 0:00:22.7]} 44... Rc3 {[%clk 0:00:01.2]} 45. a7 {[%clk 0:00:21.2]} 1-0

[Event "Late-Titled-Tuesday-Blitz-February-13-2024"]
[Site "Chess.com"]
[Date "2024.02.13"]
[Round "4"]
[White "cthulhuuu"]
[Black "JoakimVonAnd"]
[Result "0-1"]
[WhiteElo "2460"]
[BlackElo "2691"]
[TimeControl "180+1"]
[EndTime "14:38:46 PST"]
[Termination "JoakimVonAnd won on time"]

1. e4 {[%clk 0:02:59]} 1... c6 {[%clk 0:02:55.6]} 2. d3 {[%clk 0:02:59.1]} 2...
d5 {[%clk 0:02:55.7]} 3. Nd2 {[%clk 0:02:59.9]} 3... e5 {[%clk 0:02:55.9]} 4.
Ngf3 {[%clk 0:03:00.4]} 4... Bd6 {[%clk 0:02:55.5]} 5. d4 {[%clk 0:03:00.3]}
5... exd4 {[%clk 0:02:54.2]} 6. exd5 {[%clk 0:03:00.5]} 6... cxd5 {[%clk
0:02:54.7]} 7. Nxd4 {[%clk 0:03:00.2]} 7... Nf6 {[%clk 0:02:54.4]} 8. Bb5+
{[%clk 0:03:00]} 8... Bd7 {[%clk 0:02:54]} 9. Qe2+ {[%clk 0:02:58.3]} 9... Qe7
{[%clk 0:02:43.8]} 10. Bxd7+ {[%clk 0:02:57.7]} 10... Nbxd7 {[%clk 0:02:27]} 11.
Nf5 {[%clk 0:02:57.5]} 11... Qxe2+ {[%clk 0:02:22]} 12. Kxe2 {[%clk 0:02:58.4]}
12... Bf8 {[%clk 0:02:21.3]} 13. Re1 {[%clk 0:02:43]} 13... O-O-O {[%clk
0:02:19.4]} 14. Kf1 {[%clk 0:02:31.6]} 14... g6 {[%clk 0:02:19.3]} 15. Nd4
{[%clk 0:02:31.3]} 15... Bc5 {[%clk 0:02:18.8]} 16. N2b3 {[%clk 0:02:31]} 16...
Bb6 {[%clk 0:02:18.8]} 17. Re7 {[%clk 0:02:24.1]} 17... Ng4 {[%clk 0:01:49.3]}
18. h3 {[%clk 0:02:03.5]} 18... Nge5 {[%clk 0:01:49.4]} 19. Bf4 {[%clk
0:01:34.5]} 19... Rhe8 {[%clk 0:01:43.3]} 20. Rxe8 {[%clk 0:01:34.2]} 20... Rxe8
{[%clk 0:01:44.2]} 21. Nb5 {[%clk 0:01:33.6]} 21... Re6 {[%clk 0:01:36.7]} 22.
N3d4 {[%clk 0:01:13.2]} 22... Re7 {[%clk 0:01:26.6]} 23. Rd1 {[%clk 0:00:52.4]}
23... a6 {[%clk 0:01:23.1]} 24. Nc3 {[%clk 0:00:52.5]} 24... Nf6 {[%clk
0:01:11.1]} 25. Bg5 {[%clk 0:00:44]} 25... Ned7 {[%clk 0:01:11.1]} 26. Nf3
{[%clk 0:00:37.8]} 26... Re6 {[%clk 0:00:45]} 27. Nxd5 {[%clk 0:00:35.9]} 27...
Nxd5 {[%clk 0:00:45.3]} 28. Rxd5 {[%clk 0:00:36.2]} 28... f6 {[%clk 0:00:46.1]}
29. Bd2 {[%clk 0:00:28]} 29... Rc6 {[%clk 0:00:45.3]} 30. Bc3 {[%clk 0:00:28.3]}
30... Nc5 {[%clk 0:00:42.8]} 31. Nd4 {[%clk 0:00:23.4]} 31... Rc7 {[%clk
0:00:40.3]} 32. Bb4 {[%clk 0:00:17.9]} 32... Ne4 {[%clk 0:00:38.3]} 33. Ne6
{[%clk 0:00:17.3]} 33... Rxc2 {[%clk 0:00:36.5]} 34. f3 {[%clk 0:00:06.5]} 34...
Ng3+ {[%clk 0:00:21.2]} 35. Ke1 {[%clk 0:00:06.7]} 35... Re2+ {[%clk 0:00:19]}
36. Kd1 {[%clk 0:00:07]} 36... Rxe6 {[%clk 0:00:19.9]} 37. Bd6 {[%clk
0:00:07.5]} 37... Nf5 {[%clk 0:00:19.3]} 38. Bf4 {[%clk 0:00:06.7]} 38... Bc7
{[%clk 0:00:18.2]} 39. Bd2 {[%clk 0:00:06.3]} 39... Rd6 {[%clk 0:00:17.9]} 40.
Rc5 {[%clk 0:00:06.1]} 40... Kd7 {[%clk 0:00:17.6]} 41. g4 {[%clk 0:00:04.1]}
41... Bb6 {[%clk 0:00:17.6]} 0-1